bitfinex-derivatives/quotes_SOLF0:USTF0_20250821
["timestamp","ask_amount","ask_price","bid_price","bid_amount"]
[1755809509306,2.96,180.59,180.55,2.83]
[1755809509307,2.96,180.59,180.58,4.95175937]
[1755809509702,139.62925599,180.6,180.58,4.95175937]
[1755809510004,142.58925599,180.6,180.59,4.95175937]
[1755809510605,142.58925599,180.6,180.59,4.94970783]
[1755809513002,142.58925599,180.6,180.52,2.81]
[1755809513205,142.58925599,180.6,180.53,4.95148887]
[1755809513405,142.58925599,180.6,180.54,4.95148887]
[1755809513805,139.62925599,180.6,180.55,4.95159756]
[1755809514000,2.84,180.58,180.56,4.95159756]
[1755809514204,2.84,180.58,180.5,5.5413]
[1755809514205,2.84,180.57,180.53,2.81]
[1755809514400,2.84,180.57,180.54,4.95166818]
[1755809514707,2.84,180.57,180.55,4.95166818]
[1755809514904,2.84,180.57,180.53,2.81]
[1755809514905,2.84,180.57,180.56,4.95166818]
[1755809516611,139.62925599,180.6,180.57,2.81]
[1755809516810,139.62925599,180.6,180.58,4.95060601]
[1755809517012,142.46925599,180.6,180.59,4.95060601]
[1755809517308,142.46925599,180.6,180.57,2.81]
[1755809517509,142.46925599,180.6,180.58,4.9486679]
[1755809517710,142.46925599,180.6,180.59,4.9486679]
[1755809518709,139.62925599,180.6,180.59,4.9486679]
[1755809519311,142.46925599,180.6,180.59,4.9486679]
[1755809519712,135.76,180.6,180.59,7.7586679]
[1755809520315,10.08069377,180.66,180.6,2.81]
[1755809520608,135.76,180.65,180.63,2.81]
[1755809520808,135.76,180.65,180.64,4.9486679]
[1755809521512,135.76,180.65,180.64,7.7586679]
[1755809522110,135.76,180.65,180.64,2.81]
[1755809523315,3.86925599,180.7,180.64,2.81]
[1755809523516,135.76,180.69,180.59,3.86925599]
[1755809523712,138.6,180.69,180.65,2.81]
[1755809524816,138.6,180.69,180.66,2.81]
[1755809528417,2.84,180.68,180.6,9.40755599]
[1755809528711,2.84,180.67,180.64,2.81]
[1755809529808,135.76,180.69,180.61,2.81]
[1755809530015,2.84,180.68,180.61,2.81]
[1755809532817,6.70925599,180.68,180.61,2.81]
[1755809533015,2.84,180.67,180.58,2.81]
[1755809533709,2.84,180.67,180.59,2.81]
[1755809543630,2.84,180.67,180.59,8.3486]
[1755809543821,2.84,180.67,180.61,2.8]
[1755809544426,135.76,180.69,180.63,2.8]
[1755809545628,3.09,180.7,180.63,2.8]
[1755809550433,3.09,180.7,180.63,8.3373]
[1755809550633,3.09,180.7,180.64,2.8]
[1755809554738,135.7,180.73,180.67,3.86925599]
[1755809554938,135.7,180.73,180.67,6.66925599]
[1755809555137,138.79,180.73,180.69,2.8]
[1755809555338,3.09,180.73,180.7,2.8]
[1755809556337,6.21143778,180.77,180.71,2.8]
[1755809556540,3.09,180.75,180.71,2.8]
[1755809556730,3.09,180.74,180.71,2.8]
[1755809558239,3.09,180.74,180.68,5.5359]
[1755809558437,3.09,180.74,180.72,2.8]
[1755809558639,3.09,180.76,180.72,2.8]
[1755809558839,3.09,180.75,180.72,2.8]
[1755809559034,6.21143778,180.79,180.7,2.8]
[1755809559236,3.09,180.79,180.71,2.8]
[1755809559541,3.09,180.79,180.71,6.66925599]
[1755809559741,3.09,180.81,180.77,2.8]
[1755809559938,3.09,180.81,180.78,2.8]
[1755809560140,136.28,180.85,180.74,3.86925599]
[1755809560437,3.09,180.8,180.74,3.86925599]
[1755809560643,3.09,180.8,180.77,2.8]
[1755809563044,3.09,180.79,180.74,6.66925599]
[1755809563242,3.09,180.79,180.75,2.8]
[1755809563742,3.09,180.79,180.76,2.8]
[1755809564241,3.86925599,180.81,180.72,3.86925599]
[1755809564542,3.09,180.8,180.73,2.8]
[1755809565137,3.09,180.8,180.75,2.8]
[1755809565340,3.09,180.8,180.76,2.8]
[1755809565542,3.09,180.83,180.77,2.8]
[1755809567947,3.09,180.83,180.77,8.3329]
[1755809568942,3.09,180.86,180.78,2.8]
[1755809569148,3.09,180.86,180.79,2.8]
[1755809570244,207.46818013,180.88,180.79,2.8]
[1755809570445,6.21143778,180.98,180.87,3.86925599]
[1755809570651,3.09,181.0,180.91,2.8]
[1755809571546,6.95925599,181.0,180.91,2.8]
[1755809572149,3.09,180.99,180.88,2.8]
[1755809573451,3.09,180.99,180.88,8.3298]
[1755809574549,2.9,180.96,180.88,2.8]
[1755809575454,3.86925599,180.99,180.88,2.8]
[1755809575647,6.76925599,180.99,180.88,2.8]
[1755809576048,6.76925599,180.99,180.91,8.5786]
[1755809576246,6.76925599,180.99,180.91,3.05]
[1755809578452,6.76925599,180.99,180.91,8.5786]
[1755809578663,6.76925599,180.99,180.91,3.05]
[1755809578951,6.76925599,180.99,180.91,8.5788]
[1755809579855,6.76925599,180.99,180.91,3.05]
[1755809581352,3.86925599,180.99,180.91,3.05]
[1755809581558,2.9,180.98,180.91,3.05]
[1755809582358,2.9,180.98,180.91,8.5788]
[1755809582559,2.9,181.02,180.92,3.05]
[1755809582758,2.9,181.02,180.94,3.05]
[1755809585656,2.9,181.02,180.94,6.91925599]
[1755809585857,2.9,181.02,180.95,5.5274]
[1755809586056,2.9,181.02,180.95,3.05]
[1755809589060,2.9,181.02,180.93,3.86925599]
[1755809590461,2.9,181.02,180.94,3.05]
[1755809591165,2.9,181.02,180.96,3.05]
[1755809592070,2.9,181.05,180.96,3.05]
[1755809594069,2.9,181.05,180.96,3.86925599]
[1755809594270,2.9,181.05,180.97,3.05]
[1755809594572,2.9,181.08,181.0,3.05]
[1755809595164,0.19538,181.09,181.02,3.05]
[1755809596767,2.9,181.08,180.99,3.86925599]
[1755809596971,2.9,181.08,180.98,6.91925599]
[1755809597572,2.9,181.08,180.99,3.05]
[1755809598871,3.86925599,181.07,180.99,3.05]
[1755809599265,2.9,181.06,180.99,3.05]
[1755809599867,4.06463599,181.09,180.99,3.86925599]
[1755809600072,6.96463599,181.09,181.0,3.05]
[1755809600273,3.09538,181.09,181.0,3.05]
[1755809602575,2.9,181.08,181.0,3.05]
[1755809605471,0.19538,181.09,181.02,2.92]
[1755809605873,6.68925599,181.13,181.02,2.92]
[1755809606179,6.68925599,181.13,181.04,2.92]
[1755809607579,2.82,181.13,181.04,2.92]
[1755809611182,2.82,181.13,181.05,3.86925599]
[1755809611381,2.82,181.16,181.08,2.92]
[1755809611578,2.82,181.16,181.1,2.92]
[1755809611780,2.82,181.16,181.09,3.86925599]
[1755809611781,2.82,181.16,181.07,3.86925599]
[1755809611982,2.82,181.16,181.08,2.92]
[1755809612184,2.82,181.16,181.09,3.86925599]
[1755809612485,2.82,181.16,181.1,2.92]
[1755809613082,2.82,181.18,181.11,2.92]
[1755809615381,2.82,181.18,181.11,6.78925599]
[1755809618093,0.2065,181.2,181.12,2.92]
[1755809618288,0.2065,181.2,181.13,3.86925599]
[1755809618587,0.2065,181.2,181.14,2.92]
[1755809622694,2.82,181.21,181.14,2.92]
[1755809624394,6.68925599,181.21,181.14,2.92]
[1755809624596,2.82,181.2,181.11,2.92]
[1755809624791,2.82,181.2,181.11,8.4427]
[1755809624990,2.82,181.2,181.1,3.86925599]
[1755809625191,2.82,181.2,181.11,2.92]
[1755809625999,2.82,181.2,181.13,2.92]
[1755809626802,2.82,181.2,181.13,8.4421]
[1755809627204,2.82,181.2,181.13,12.31135599]
[1755809627596,2.82,181.2,181.13,6.78925599]
[1755809627795,2.82,181.2,181.13,3.86925599]
[1755809628005,2.82,181.2,181.14,2.92]
[1755809630813,2.82,181.2,181.12,3.86925599]
[1755809632604,2.82,181.2,181.13,2.92]
[1755809637616,2.96,181.18,181.09,2.8]
[1755809638914,3.86925599,181.16,181.09,2.8]
[1755809639212,2.96,181.15,181.09,2.8]
[1755809640415,2.96,181.13,181.06,2.8]
[1755809641012,3.86925599,181.12,181.06,2.8]
[1755809641515,2.96,181.09,181.06,2.8]
[1755809643416,2.96,181.08,181.05,2.8]
[1755809645215,2.96,181.1,181.02,2.8]
[1755809645515,3.86925599,181.13,181.04,2.8]
[1755809645817,2.96,181.11,181.04,2.8]
[1755809650519,153.37343518,181.17,181.07,2.8]
[1755809650520,2.96,181.14,181.07,2.8]
[1755809650727,2.96,181.14,181.08,3.86925599]
[1755809651228,3.86925599,181.18,181.12,3.86925599]
[1755809651229,2.96,181.18,181.12,3.86925599]
[1755809651925,2.96,181.21,181.13,2.8]
[1755809653229,2.96,181.21,181.13,6.66925599]
[1755809653831,2.96,181.21,181.14,2.8]
[1755809655724,3.86925599,181.2,181.14,2.8]
[1755809655928,2.96,181.22,181.15,2.8]
[1755809657027,6.82925599,181.25,181.15,6.66925599]
[1755809657237,2.96,181.25,181.17,6.66925599]
[1755809657629,2.96,181.25,181.17,2.8]
[1755809657933,2.96,181.25,181.18,6.66925599]
[1755809658132,2.96,181.25,181.18,3.86925599]
[1755809658432,2.96,181.28,181.21,2.8]
[1755809664632,0.22027,181.3,181.23,2.93]
[1755809664832,0.22027,181.3,181.26,2.93]
[1755809665138,0.22027,181.3,181.27,2.93]
[1755809665436,0.22027,181.3,181.24,3.86925599]
[1755809665637,0.22027,181.3,181.26,2.93]
[1755809666238,0.22027,181.3,181.27,2.93]
[1755809667737,0.22027,181.3,181.26,3.86925599]
[1755809667938,0.22027,181.3,181.28,2.93]
[1755809668340,0.22027,181.3,181.22,140.24]
[1755809668537,0.22027,181.3,181.29,2.93]
[1755809669234,0.22027,181.3,181.26,6.79925599]
[1755809669437,0.22027,181.3,181.26,3.86925599]
[1755809669638,0.22027,181.3,181.27,2.93]
[1755809670332,3.02027,181.3,181.24,6.79925599]
[1755809671029,0.22027,181.3,181.24,6.79925599]
[1755809671233,0.22027,181.3,181.26,3.86925599]
[1755809671438,0.22027,181.3,181.22,2.93]
[1755809671641,0.22027,181.3,181.27,2.93]
[1755809671837,3.02027,181.3,181.27,2.93]
[1755809672934,0.22027,181.3,181.27,2.93]
[1755809673233,3.02027,181.3,181.24,6.79925599]
[1755809674937,3.02027,181.3,181.24,2.93]
[1755809675132,3.02027,181.3,181.24,6.79925599]
[1755809675334,0.22027,181.3,181.21,140.48]
[1755809675541,0.22027,181.3,181.29,2.93]
[1755809675741,0.22027,181.3,181.25,3.86925599]
[1755809675945,0.22027,181.3,181.27,2.93]
[1755809676134,0.22027,181.3,181.28,2.93]
[1755809677040,0.22027,181.3,181.26,2.93]
[1755809677241,0.22027,181.3,181.27,2.93]
[1755809678242,2.8,181.29,181.25,6.79925599]
[1755809678748,2.8,181.28,181.21,6.79925599]
[1755809679441,2.8,181.28,181.21,12.31875599]
[1755809679642,0.22027,181.3,181.22,2.93]
[1755809679939,0.22027,181.3,181.26,2.93]
[1755809680144,0.22027,181.3,181.25,3.86925599]
[1755809680338,0.22027,181.3,181.29,2.93]
[1755809683244,0.22027,181.3,181.29,8.4473]
[1755809683743,0.22027,181.3,181.29,2.93]
[1755809685139,2.8,181.37,181.29,8.4473]
[1755809685337,2.8,181.37,181.29,2.93]
[1755809685543,2.8,181.37,181.27,3.86925599]
[1755809686042,2.8,181.37,181.26,8.448]
[1755809686043,2.8,181.37,181.26,2.93]
[1755809686241,138.86,181.41,181.26,2.93]
[1755809686242,3.86925599,181.34,181.26,2.93]
[1755809686547,2.8,181.33,181.26,2.93]
[1755809686937,2.8,181.33,181.18,2.93]
[1755809687133,3.86925599,181.31,181.22,2.93]
[1755809687339,2.8,181.3,181.22,2.93]
[1755809688343,2.8,181.3,181.22,12.31845599]
[1755809688745,2.8,181.3,181.22,6.79925599]
[1755809690345,2.8,181.3,181.22,12.31865599]
[1755809690542,2.8,181.33,181.24,3.86925599]
[1755809690847,2.8,181.33,181.26,9.38725599]
[1755809691146,2.8,181.33,181.27,2.93]
[1755809691645,2.8,181.33,181.27,8.4479]
[1755809692045,2.8,181.33,181.27,2.93]
[1755809692848,2.8,181.33,181.27,8.4479]
[1755809693345,6.78925599,181.36,181.27,2.93]
[1755809693649,6.78925599,181.36,181.28,5.5174]
[1755809695147,6.78925599,181.36,181.27,2.93]
[1755809695750,6.78925599,181.36,181.28,5.5176]
[1755809696350,2.92,181.36,181.28,5.5176]
[1755809696550,2.92,181.36,181.27,8.4478]
[1755809696845,2.92,181.36,181.27,2.93]
[1755809697045,2.92,181.36,181.28,5.5176]
[1755809698450,2.92,181.36,181.27,8.4478]
[1755809700145,3.86925599,181.36,181.27,2.93]
[1755809700353,2.92,181.33,181.24,6.77925599]
[1755809700552,3.86925599,181.32,181.24,2.91]
[1755809700846,2.92,181.31,181.24,2.91]
[1755809701251,2.92,181.34,181.25,2.91]
[1755809701745,2.92,181.34,181.26,9.38725599]
[1755809701948,2.92,181.34,181.27,2.91]
[1755809704350,2.92,181.32,181.22,2.91]
[1755809705155,2.92,181.32,181.23,2.91]
[1755809705349,2.92,181.32,181.23,6.77925599]
[1755809705956,3.86925599,181.32,181.23,6.77925599]
[1755809706155,2.92,181.31,181.23,6.77925599]
[1755809706346,2.92,181.31,181.23,2.91]
[1755809707644,6.78925599,181.31,181.23,2.91]
[1755809708854,2.92,181.3,181.23,2.91]
[1755809710855,2.92,181.3,181.23,8.4292]
[1755809711054,9.13143778,181.33,181.23,6.77925599]
[1755809711258,9.13143778,181.33,181.24,2.91]
[1755809711758,9.13143778,181.33,181.25,2.91]
[1755809711958,2.92,181.33,181.26,2.91]
[1755809712160,2.92,181.33,181.27,5.5179]
[1755809712362,2.92,181.33,181.26,6.77925599]
[1755809712562,0.03823907,181.31,181.29,2.91]
[1755809712859,0.03823907,181.31,181.3,2.91]
[1755809713059,2.92,181.34,181.3,2.91]
[1755809713260,0.03569992,181.32,181.28,0.04144408]
[1755809713462,2.92,181.31,181.26,2.91]
[1755809713760,0.03569992,181.32,181.28,0.04083218]
[1755809713952,2.92,181.31,181.28,0.04083218]
[1755809714154,2.92,181.29,181.28,0.04083218]
[1755809715062,7.34925599,181.29,181.28,0.04083218]
[1755809715761,6.78925599,181.29,181.28,0.04083218]
[1755809716660,2.92,181.31,181.28,0.04083218]
[1755809717158,0.03569992,181.32,181.29,2.91]
[1755809718360,0.03569992,181.32,181.3,2.91]
[1755809718761,0.03569992,181.32,181.31,2.91]
[1755809721266,0.03569992,181.32,181.29,2.91]
[1755809721660,0.03569992,181.32,181.3,2.91]
[1755809721856,0.03569992,181.32,181.31,2.91]
[1755809726663,0.03569992,181.32,181.29,3.06]
[1755809726865,0.03569992,181.32,181.3,3.06]
[1755809727471,0.03569992,181.32,181.28,5.55823218]
[1755809727670,0.03569992,181.32,181.3,3.06]
[1755809728070,0.03569992,181.32,181.28,0.04083218]
[1755809728368,0.03569992,181.32,181.29,3.06]
[1755809728574,0.03569992,181.32,181.31,3.06]
[1755809734879,0.03569992,181.32,181.31,8.5767]
[1755809735376,0.03569992,181.32,181.31,3.06]
[1755809740481,0.03569992,181.32,181.31,8.5767]
[1755809746780,3.1435,181.4,181.35,5.5154]
[1755809746979,3.1435,181.4,181.36,3.06]
[1755809747180,3.1435,181.4,181.37,3.06]
[1755809747883,0.2335,181.4,181.37,3.06]
[1755809748079,0.2335,181.4,181.37,3.10069558]
[1755809748282,0.2335,181.4,181.37,3.90995157]
[1755809748583,0.2335,181.4,181.39,3.06]
[1755809755292,0.2335,181.4,181.39,6.92925599]
[1755809755492,0.2335,181.4,181.39,6.84925599]
[1755809755693,0.2335,181.4,181.39,12.36355599]
[1755809757194,3.03,181.49,181.41,2.94]
[1755809758087,3.03,181.49,181.43,0.03870529]
[1755809760293,3.86925599,181.46,181.43,0.03870529]
[1755809760500,3.03,181.43,181.34,2.94]
[1755809760899,3.03,181.43,181.35,3.86925599]
[1755809761200,3.03,181.43,181.36,2.98]
[1755809762203,3.03,181.41,181.33,209.44885068]
[1755809762595,3.03,181.41,181.38,0.04111246]
[1755809762596,3.03,181.4,181.38,0.04111246]
[1755809762794,0.03953822,181.41,181.38,0.04111246]
[1755809762998,3.03,181.4,181.38,0.04111246]
[1755809763598,3.03,181.39,181.38,0.04111246]
[1755809765298,0.03953822,181.41,181.38,0.04111246]
[1755809765494,0.03953822,181.41,181.39,2.98]
[1755809766198,0.03953822,181.41,181.38,0.04111246]
[1755809766500,0.03953822,181.41,181.39,2.98]
[1755809766898,0.03953822,181.41,181.4,2.98]
[1755809767698,0.03953822,181.41,181.4,6.84925599]
[1755809768799,3.03,181.47,181.4,6.84925599]
[1755809769602,3.03,181.47,181.41,2.98]
[1755809769803,3.03,181.5,181.41,2.98]
[1755809770202,3.03,181.5,181.42,0.03520824]
[1755809770404,3.03,181.5,181.42,3.90446423]
[1755809771201,3.03,181.5,181.42,6.88446423]
[1755809772909,3.03,181.5,181.42,3.01520824]
[1755809775211,3.03,181.48,181.42,0.03520824]
[1755809778606,3.03,181.51,181.42,0.03520824]
[1755809778811,3.03,181.51,181.45,2.98]
[1755809779704,3.86925599,181.55,181.47,2.98]
[1755809779903,3.03,181.52,181.46,0.03582164]
[1755809780411,3.03,181.52,181.46,3.01582164]
[1755809781203,3.03,181.52,181.46,0.03582164]
[1755809781406,3.03,181.5,181.46,0.03582164]
[1755809781716,3.03,181.47,181.46,0.03582164]
[1755809782209,3.03,181.47,181.41,2.98]
[1755809782510,3.03,181.47,181.45,0.04101862]
[1755809783014,2.88,181.46,181.45,0.04101862]
[1755809784915,2.88,181.48,181.45,0.04101862]
[1755809785117,2.88,181.47,181.45,0.04101862]
[1755809785608,3.86925599,181.5,181.45,0.04101862]
[1755809785810,6.21143778,181.53,181.45,2.97101862]
[1755809785811,2.88,181.52,181.45,2.97101862]
[1755809788808,2.88,181.52,181.45,6.84027461]
[1755809789319,2.88,181.55,181.46,2.93]
[1755809789516,2.88,181.55,181.46,6.79925599]
[1755809790018,2.88,181.55,181.46,2.93]
[1755809790316,6.74925599,181.55,181.49,0.03694645]
[1755809792214,2.88,181.54,181.49,0.03694645]
[1755809792516,2.88,181.52,181.49,0.03694645]
[1755809793210,2.88,181.54,181.49,0.03694645]
[1755809793410,3.86925599,181.55,181.49,0.03694645]
[1755809793618,2.88,181.52,181.49,0.03694645]
[1755809794409,3.86925599,181.53,181.49,0.03694645]
[1755809794613,2.88,181.51,181.49,0.03694645]
[1755809794815,3.86925599,181.53,181.49,0.03694645]
[1755809794816,2.88,181.5,181.49,0.03694645]
[1755809797814,6.74925599,181.5,181.49,0.03694645]
[1755809798017,3.86925599,181.5,181.4,6.79925599]
[1755809798214,2.88,181.49,181.4,2.93]
[1755809798415,3.86925599,181.48,181.4,2.93]
[1755809798614,2.88,181.47,181.4,2.93]
[1755809799316,10.08069377,181.53,181.37,2.93]
[1755809799317,2.88,181.45,181.37,2.93]
[1755809799716,2.88,181.45,181.38,2.93]
[1755809802823,2.88,181.44,181.35,2.93]
[1755809805525,2.88,181.42,181.35,2.93]
[1755809805719,2.88,181.42,181.33,212.37885068]
[1755809807119,2.88,181.42,181.34,2.93]
[1755809808217,2.88,181.4,181.34,2.93]
[1755809808417,2.88,181.4,181.33,209.44885068]
[1755809808726,2.88,181.37,181.33,209.44885068]
[1755809808922,2.88,181.36,181.33,209.44885068]
[1755809809722,2.88,181.36,181.33,212.37885068]
[1755809809920,2.88,181.34,181.29,2.93]
[1755809810119,2.88,181.34,181.26,141.1]
[1755809810422,2.88,181.34,181.27,2.93]
[1755809811522,3.86925599,181.31,181.23,211.28284955]
[1755809812422,2.88,181.3,181.23,211.28284955]
[1755809812723,2.88,181.3,181.23,2.93]
[1755809813423,2.88,181.3,181.24,5.00668669]
[1755809813723,2.88,181.28,181.25,5.00668669]
[1755809813922,2.88,181.28,181.26,5.00668669]
[1755809814123,6.74925599,181.31,181.27,2.93]
[1755809814324,6.74925599,181.31,181.28,5.00200209]
[1755809814517,2.88,181.3,181.29,5.00200209]
[1755809814714,2.88,181.3,181.29,5.00253278]
[1755809815623,2.88,181.3,181.24,2.93]
[1755809815822,2.88,181.29,181.25,4.99825323]
[1755809816020,2.88,181.3,181.26,4.99825323]
[1755809816321,2.88,181.28,181.27,4.99825323]
[1755809816924,2.88,181.28,181.22,2.93]
[1755809817125,3.86925599,181.29,181.23,7.92545753]
[1755809817326,2.88,181.27,181.24,4.99545753]
[1755809817527,6.74925599,181.31,181.26,2.93]
[1755809817724,2.88,181.3,181.26,2.93]
[1755809818028,2.88,181.3,181.21,2.93]
[1755809818229,2.88,181.3,181.23,2.93]
[1755809818431,2.88,181.3,181.24,4.99026299]
[1755809818623,2.88,181.29,181.25,4.99026299]
[1755809818824,2.88,181.28,181.26,4.99026299]
[1755809819120,2.88,181.3,181.24,2.93]
[1755809819324,2.88,181.29,181.25,4.98447296]
[1755809819526,2.88,181.28,181.24,2.93]
[1755809819727,2.88,181.28,181.25,4.98362632]
[1755809819927,3.86925599,181.29,181.24,2.93]
[1755809820124,3.86925599,181.29,181.25,4.98362632]
[1755809820430,2.88,181.26,181.2,2.93]
[1755809820633,2.88,181.26,181.21,4.98579058]
[1755809820826,2.88,181.25,181.22,4.98579058]
[1755809821026,2.88,181.25,181.23,4.98579058]
[1755809821334,2.88,181.26,181.19,2.93]
[1755809821638,2.88,181.26,181.2,4.98181907]
[1755809821835,2.88,181.25,181.21,7.91181907]
[1755809822136,2.88,181.26,181.22,4.98181907]
[1755809822435,2.88,181.24,181.21,2.93]
[1755809822631,2.88,181.24,181.22,4.97834971]
[1755809822936,2.88,181.24,181.21,2.93]
[1755809823136,2.88,181.24,181.22,4.97834764]
[1755809823333,2.88,181.24,181.21,2.93]
[1755809823534,2.88,181.24,181.22,4.975272]
[1755809823733,2.88,181.24,181.21,2.93]
[1755809823938,2.88,181.24,181.22,4.975272]
[1755809824142,2.88,181.24,181.15,3.86925599]
[1755809824436,2.88,181.24,181.16,7.90299568]
[1755809824632,2.88,181.24,181.17,4.97299568]
[1755809824832,2.88,181.24,181.18,4.97299568]
[1755809825034,2.88,181.22,181.19,4.97299568]
[1755809825331,2.88,181.23,181.17,2.93]
[1755809825536,2.88,181.22,181.18,4.97263746]
[1755809825730,2.88,181.21,181.17,2.93]
[1755809826034,2.88,181.21,181.18,4.97267817]
[1755809826235,2.88,181.21,181.14,2.93]
[1755809826236,2.88,181.2,181.14,2.93]
[1755809826534,6.74925599,181.21,181.15,7.90055466]
[1755809826738,6.74925599,181.21,181.16,4.97055466]
[1755809827038,2.88,181.2,181.17,4.97055466]
[1755809827235,2.88,181.2,181.12,3.86925599]
[1755809827537,2.88,181.2,181.13,7.89763256]
[1755809827737,2.88,181.2,181.14,4.96763256]
[1755809827937,3.86925599,181.23,181.16,2.93]
[1755809828136,3.86925599,181.23,181.17,4.96763256]
[1755809828332,3.86925599,181.21,181.12,3.86925599]
[1755809828533,3.86925599,181.21,181.13,4.96458605]
[1755809828731,3.86925599,181.21,181.14,4.96458605]
[1755809828928,3.86925599,181.21,181.15,4.96458605]
[1755809829128,2.88,181.2,181.16,4.96458605]
[1755809829338,6.74925599,181.21,181.14,2.93]
[1755809829531,6.74925599,181.21,181.15,4.962631]
[1755809829730,2.88,181.2,181.16,7.892631]
[1755809829932,2.88,181.2,181.17,2.93]
[1755809830132,2.88,181.2,181.1,3.86925599]
[1755809830336,3.86925599,181.23,181.13,2.93]
[1755809830531,3.86925599,181.21,181.14,4.96045733]
[1755809830736,3.86925599,181.26,180.96,537.55965678]
[1755809830737,2.88,181.18,181.15,7.89045733]
[1755809831033,6.74925599,181.21,181.12,2.93]
[1755809831236,6.74925599,181.21,181.13,4.95971043]
[1755809831443,2.88,181.21,181.14,2.93]
[1755809831643,2.88,181.21,181.15,4.95823043]
[1755809831837,2.88,181.26,181.14,2.93]
[1755809832036,2.88,181.26,181.17,2.93]
[1755809832239,3.86925599,181.2,181.0,4.5846899]
[1755809832536,2.88,181.25,181.13,2.93]
[1755809832732,6.74925599,181.25,181.15,2.93]
[1755809833344,6.74925599,181.23,181.15,2.93]
[1755809835543,3.86925599,181.25,181.15,2.93]
[1755809835746,0.04129054,181.21,181.17,0.03564922]
[1755809835946,0.04129054,181.21,181.18,2.93]
[1755809836339,0.04129054,181.21,181.18,6.79925599]
[1755809836539,0.04129054,181.21,181.19,2.93]
[1755809836740,0.04129054,181.21,181.2,2.93]
[1755809837941,0.04129054,181.21,181.18,2.93]
[1755809838142,2.88,181.2,181.17,0.03564922]
[1755809839949,0.04129054,181.21,181.2,2.93]
[1755809840947,0.04129054,181.21,181.2,3.49]
[1755809841143,2.88,181.28,181.2,3.49]
[1755809841144,2.88,181.28,181.2,2.93]
[1755809841540,2.88,181.26,181.2,2.93]
[1755809842044,3.86925599,181.29,181.2,2.93]
[1755809842549,3.86925599,181.29,181.21,0.03836328]
[1755809842753,2.88,181.3,181.22,2.82]
[1755809844744,2.97,181.28,181.21,0.03836328]
[1755809845640,2.97,181.26,181.21,0.03836328]
[1755809845845,2.97,181.24,181.21,0.03836328]
[1755809846152,2.97,181.24,181.19,2.82]
[1755809846453,3.86925599,181.27,181.21,0.04110154]
[1755809846454,2.97,181.22,181.21,0.04110154]
[1755809849252,2.97,181.24,181.21,0.04110154]
[1755809850045,2.97,181.25,181.21,0.04110154]
[1755809850448,3.86925599,181.26,181.21,0.04110154]
[1755809850650,3.86925599,181.24,181.21,0.04110154]
[1755809850850,2.97,181.22,181.21,0.04110154]
[1755809851252,6.83925599,181.22,181.21,0.04110154]
[1755809852360,2.97,181.21,181.14,2.82]
[1755809852553,3.86925599,181.2,181.14,2.82]
[1755809854554,2.97,181.19,181.1,2.82]
[1755809855461,2.97,181.17,181.1,2.82]
[1755809856963,6.83925599,181.17,181.1,2.82]
[1755809859961,2.97,181.17,181.1,2.82]